bitfinex/quotes_SOLUSD_20250307
["timestamp","ask_amount","ask_price","bid_price","bid_amount"]
[1741381228455,19.92718475,145.54,145.35,25.52954886]
[1741381228663,19.92718475,145.54,145.31,318.8818]
[1741381228863,21.642,145.55,145.44,42.46033107]
[1741381229044,6.1834,145.55,145.48,42.46033107]
[1741381229249,6.1834,145.55,145.43,18.64964886]
[1741381229250,6.1817,145.59,145.4,18.64964886]
[1741381229453,6.1817,145.59,145.42,18.64964886]
[1741381229879,21.636,145.59,145.42,18.64964886]
[1741381230175,19.93795978,145.58,145.39,18.64964886]
[1741381230476,18.64964886,145.56,145.32,25.53094886]
[1741381230674,42.46033107,145.46,145.39,42.46033107]
[1741381230865,42.46033107,145.44,145.32,6.8813]
[1741381231071,42.46033107,145.42,145.35,42.46033107]
[1741381231275,42.46033107,145.41,145.34,42.46033107]
[1741381231485,1.28954705,145.47,145.29,6.9157]
[1741381231660,18.64964886,145.54,145.42,42.46033107]
[1741381231858,42.46033107,145.49,145.42,42.46033107]
[1741381232089,42.46033107,145.46,145.38,42.46033107]
[1741381232254,42.46033107,145.44,145.31,17.2039]
[1741381232454,6.1874,145.46,145.3,6.8823]
[1741381232455,7.47676801,145.46,145.3,6.8823]
[1741381232654,18.64964886,145.45,145.3,6.8823]
[1741381232854,19.93932731,145.45,145.29,0.033]
[1741381233582,6.1874,145.46,145.36,42.46033107]
[1741381233756,42.46033107,145.43,145.36,42.46033107]
[1741381233955,42.46033107,145.43,145.29,24.1226]
[1741381233956,19.93928984,145.42,145.29,0.033]
[1741381234268,18.64964886,145.4,145.29,0.033]
[1741381234472,1.2903761,145.39,145.29,0.033]
[1741381234862,18.64964886,145.38,145.29,0.033]
[1741381235179,42.46033107,145.34,145.29,0.033]
[1741381235351,1.29033554,145.4,145.29,0.033]
[1741381235554,64.50583107,145.44,145.29,0.033]
[1741381235555,6.575,145.44,145.34,42.46033107]
[1741381235868,42.46033107,145.44,145.37,42.46033107]
[1741381236058,42.46033107,145.44,145.29,0.033]
[1741381236059,42.46033107,145.44,145.29,18.68264886]
[1741381236253,42.46033107,145.43,145.36,42.46033107]
[1741381236468,18.64964886,145.47,145.34,42.46033107]
[1741381236780,6.1855,145.5,145.38,42.46033107]
[1741381236988,42.46033107,145.47,145.4,42.46033107]
[1741381237163,42.46033107,145.48,145.41,42.46033107]
[1741381237690,42.46033107,145.49,145.42,42.46033107]
[1741381237981,42.46033107,145.45,145.38,42.46033107]
[1741381238582,18.64964886,145.5,145.32,18.64964886]
[1741381238756,161.4844,145.52,145.41,42.46033107]
[1741381239082,42.46033107,145.49,145.42,42.46033107]
[1741381239285,19.93875958,145.51,145.31,17.2041]
[1741381239586,42.46033107,145.42,145.34,42.46033107]
[1741381239773,42.46033107,145.42,145.35,42.46033107]
[1741381239981,42.46033107,145.39,145.32,42.46033107]
[1741381240169,42.46033107,145.37,145.3,42.46033107]
[1741381240367,18.64964886,145.39,145.29,0.033]
[1741381240665,42.46033107,145.35,145.29,0.033]
[1741381241586,42.46033107,145.36,145.29,42.49333107]
[1741381241993,42.46033107,145.35,145.29,0.033]
[1741381242195,42.46033107,145.32,145.29,0.033]
[1741381242367,19.93981726,145.38,145.19,148.913]
[1741381242368,18.64964886,145.29,145.19,0.033]
[1741381242573,42.46033107,145.23,145.19,0.033]
[1741381242768,18.64964886,145.26,145.19,0.033]
[1741381242968,42.46033107,145.2,145.19,0.033]
[1741381243371,18.64964886,145.3,145.19,0.033]
[1741381243780,42.46033107,145.28,145.19,0.033]
[1741381243977,42.46033107,145.22,145.19,0.033]
[1741381244290,19.94052394,145.27,145.19,0.033]
[1741381244291,42.46033107,145.2,145.19,0.033]
[1741381244479,42.46033107,145.21,145.19,0.033]
[1741381244984,1.29143165,145.3,145.19,0.033]
[1741381245191,1.29143165,145.34,145.19,0.033]
[1741381245400,1.29053687,145.38,145.19,18.68264886]
[1741381245565,156.7241,145.39,145.19,18.68264886]
[1741381245961,6.0824,145.44,145.31,42.46033107]
[1741381246177,0.03,145.45,145.36,42.46033107]
[1741381246377,42.46033107,145.44,145.37,42.46033107]
[1741381246579,0.03,145.45,145.39,42.46033107]
[1741381246759,0.03,145.45,145.3,60.16964886]
[1741381247181,0.03,145.45,145.32,60.16964886]
[1741381247380,0.03,145.45,145.32,18.64964886]
[1741381247596,0.03,145.45,145.37,41.52]
[1741381247767,0.03,145.45,145.44,61.10997993]
[1741381248265,0.03,145.45,145.38,148.96]
[1741381248689,0.03,145.45,145.38,312.0]
[1741381248992,0.03,145.45,145.33,6.8808]
[1741381249159,0.03,145.45,145.31,6.8817]
[1741381249359,18.67964886,145.45,145.31,6.8817]
[1741381249567,0.03,145.45,145.3,18.64964886]
[1741381249792,0.03,145.45,145.4,42.46033107]
[1741381249970,42.46033107,145.43,145.36,42.46033107]
[1741381250409,42.46033107,145.41,145.3,18.64964886]
[1741381250560,0.03,145.45,145.3,41.52]
[1741381250763,0.03,145.45,145.29,173.0492]
[1741381250984,0.03,145.45,145.3,18.64964886]
[1741381251393,0.03,145.45,145.33,41.52]
[1741381251593,0.03,145.45,145.35,41.52]
[1741381251807,0.03,145.45,145.44,42.46033107]
[1741381252115,0.03,145.45,145.44,61.10997993]
[1741381252276,0.03,145.45,145.44,18.64964886]
[1741381252772,0.03,145.6,145.44,18.64964886]
[1741381252773,42.46033107,145.59,145.44,18.64964886]
[1741381252973,0.03,145.6,145.54,42.46033107]
[1741381253172,0.03,145.6,145.55,42.46033107]
[1741381253622,0.03,145.6,145.56,42.46033107]
[1741381253912,0.03,145.6,145.59,42.46033107]
[1741381254098,0.03,145.6,145.57,42.46033107]
[1741381254277,0.03,145.6,145.55,42.46033107]
[1741381254476,0.03,145.6,145.59,42.46033107]
[1741381254675,0.03,145.6,145.59,61.10997993]
[1741381254908,0.03,145.6,145.59,373.10997993]
[1741381255706,0.03,145.6,145.59,379.97857993]
[1741381256310,0.636435,145.63,145.6,18.64964886]
[1741381256483,0.636435,145.63,145.62,61.10997993]
[1741381256803,0.636435,145.63,145.62,18.64964886]
[1741381257006,0.636435,145.63,145.62,61.10997993]
[1741381257213,0.03,145.63,145.6,18.64964886]
[1741381257398,0.03,145.63,145.5,68.7284]
[1741381257600,0.03,145.63,145.61,42.46033107]
[1741381257784,0.03,145.63,145.62,42.46033107]
[1741381258400,0.03,145.63,145.62,61.10997993]
[1741381258808,0.03,145.63,145.62,42.46033107]
[1741381258972,0.03,145.63,145.56,18.64964886]
[1741381259196,42.46033107,145.61,145.48,6.8737]
[1741381259399,18.64964886,145.62,145.47,13.1762]
[1741381259631,18.64964886,145.6,145.45,460.82]
[1741381259810,7.46895376,145.61,145.4,6.302]
[1741381259811,18.64964886,145.58,145.4,6.302]
[1741381260000,18.64964886,145.6,145.42,18.64964886]
[1741381260205,6.1808,145.61,145.42,18.64964886]
[1741381260423,42.46033107,145.55,145.48,42.46033107]
[1741381260600,42.46033107,145.5,145.43,42.46033107]
[1741381260803,42.46033107,145.46,145.35,6.8799]
[1741381261012,18.64964886,145.58,145.35,6.8799]
[1741381261212,1.28866078,145.59,145.36,70.64964886]
[1741381261428,18.64964886,145.6,145.36,70.64964886]
[1741381261737,18.64964886,145.58,145.37,24.0763]
[1741381261911,18.64964886,145.56,145.35,6.8799]
[1741381262231,42.46033107,145.44,145.37,42.46033107]
[1741381262410,42.46033107,145.43,145.36,42.46033107]
[1741381262613,42.46033107,145.37,145.3,42.46033107]
[1741381262815,18.64964886,145.41,145.28,0.033]
[1741381263008,18.64964886,145.39,145.28,0.033]
[1741381263206,18.64964886,145.37,145.28,0.033]
[1741381263406,1.290625,145.36,145.28,0.033]
[1741381263614,18.64964886,145.39,145.28,0.033]
[1741381263813,1.29050941,145.38,145.28,0.033]
[1741381264023,16.76509197,145.4,145.28,0.033]
[1741381264235,42.46033107,145.34,145.28,0.033]
[1741381264415,1.29051969,145.33,145.28,0.033]
[1741381265232,1.29062678,145.36,145.28,0.033]
[1741381265412,42.46033107,145.33,145.28,0.033]
[1741381265606,42.46033107,145.31,145.28,0.033]
[1741381266437,61.10997993,145.29,145.19,0.033]
[1741381266607,42.46033107,145.2,145.19,0.033]
[1741381267012,18.64964886,145.29,145.19,0.033]
[1741381267209,1.29141655,145.28,145.13,0.033]
[1741381267420,18.64964886,145.26,145.13,0.033]
[1741381267629,148.86,145.31,145.13,0.033]
[1741381267630,18.64964886,145.22,145.13,0.033]
[1741381267829,18.64964886,145.2,145.13,0.033]
[1741381268014,18.64964886,145.14,145.13,0.033]
[1741381268212,61.10997993,145.1,145.04,0.033]
[1741381268431,62.40266488,145.1,145.04,0.033]
[1741381268635,2.9293511,145.16,145.04,0.033]
[1741381268847,18.64964886,145.18,145.04,0.033]
[1741381269141,18.64964886,145.21,145.04,0.033]
[1741381269339,7.48800268,145.25,145.09,312.033]
[1741381269557,18.64964886,145.24,145.09,312.033]
[1741381269711,18.64964886,145.22,145.19,0.033]
[1741381270041,18.64964886,145.19,145.09,0.033]
[1741381270247,42.46033107,145.12,145.09,0.033]
[1741381270413,1.29212233,145.16,145.09,0.033]
[1741381270611,42.46033107,145.12,145.09,0.033]
[1741381270922,18.64964886,145.1,145.09,0.033]
[1741381271113,18.64964886,145.1,145.04,0.033]
[1741381271442,18.64964886,145.08,145.04,0.033]
[1741381271616,14.84,145.11,145.04,0.033]
[1741381271617,18.64964886,145.06,145.04,0.033]
[1741381271812,43.75339797,145.05,145.04,0.033]
[1741381272011,62.40304683,145.05,145.04,0.033]
[1741381272241,18.64964886,145.04,144.91,42.46033107]
[1741381272421,42.46033107,145.0,144.93,42.46033107]
[1741381272626,42.46033107,144.98,144.9,313.7852318]
[1741381272838,1.2935146,145.09,144.97,42.46033107]
[1741381273020,18.64964886,145.08,144.9,8.6863318]
[1741381273214,18.64964886,145.06,144.9,8.6863318]
[1741381273415,18.64964886,145.04,144.9,8.6863318]
[1741381273632,1.29339796,145.08,144.91,18.64964886]
[1741381274027,42.46033107,145.03,144.96,42.46033107]
[1741381274344,42.46033107,145.1,145.02,42.46033107]
[1741381274544,42.46033107,145.11,145.04,42.46033107]
[1741381274844,1.29225031,145.1,144.95,18.64964886]
[1741381275042,18.64964886,145.09,144.95,18.64964886]
[1741381275218,18.64964886,145.11,144.94,14.68]
[1741381275430,14.68,145.13,144.95,18.64964886]
[1741381275734,19.94202221,145.12,144.97,18.64964886]
[1741381275931,1.29237335,145.18,145.06,53.34302691]
[1741381276122,53.34302691,145.14,145.07,53.34302691]
[1741381276324,14.58,145.18,145.1,53.34302691]
[1741381276527,22.07110301,145.18,144.97,18.64964886]
[1741381276756,2.0,145.14,144.91,6.9008]
[1741381276940,18.64964886,145.12,144.91,24.1528]
[1741381277124,18.64964886,145.1,144.91,24.1528]
[1741381277319,18.64964886,145.08,144.91,24.1528]
[1741381277523,18.64964886,145.06,144.9,1.7852318]
[1741381277828,53.34302691,144.93,144.9,1.7852318]
[1741381278335,1.29393275,144.96,144.9,1.7852318]
[1741381278336,53.34302691,144.91,144.9,1.7852318]
[1741381278745,14.48,144.98,144.9,1.7852318]
[1741381279045,19.94350445,144.97,144.9,1.7852318]
[1741381279628,18.64964886,144.95,144.9,1.7852318]
[1741381279840,71.99267577,144.91,144.9,1.7852318]
[1741381280344,71.99267577,144.91,144.78,60.24982691]
[1741381280527,53.34302691,144.83,144.76,6.9076]
[1741381280844,14.36,144.88,144.81,53.34302691]
[1741381281152,18.64964886,144.87,144.76,6.9076]
[1741381281623,18.64964886,144.87,144.75,0.033]
[1741381282028,14.36,144.88,144.75,0.033]
[1741381282326,14.26,144.98,144.87,53.34302691]
[1741381282529,14.26,144.98,144.78,60.16964886]
[1741381282530,53.34302691,144.95,144.78,41.52]
[1741381282747,53.34302691,144.93,144.86,53.34302691]
[1741381283054,1.29401535,145.02,144.8,110.16964886]
[1741381283244,1.32340927,145.04,144.83,60.16964886]
[1741381283545,18.64964886,145.01,144.79,1.5683]
[1741381283745,6.2077,144.98,144.82,18.64964886]
[1741381284048,53.34302691,144.96,144.89,53.34302691]
[1741381284237,53.34302691,144.9,144.81,6.9056]
[1741381284430,53.34302691,144.92,144.85,53.34302691]
[1741381284639,19.94397706,144.95,144.81,6.9056]
[1741381284844,18.64964886,144.94,144.76,6.9079]
[1741381285042,1.29471864,144.93,144.76,6.9079]
[1741381285223,1.29471864,144.93,144.75,6.9414]
[1741381285424,3.29471864,144.93,144.75,0.033]
[1741381285645,18.64964886,144.91,144.75,0.033]
[1741381285844,53.34302691,144.81,144.75,0.033]
[1741381286149,53.34302691,144.77,144.75,0.033]
[1741381286444,53.34302691,144.76,144.75,0.033]
[1741381286646,54.63853707,144.76,144.75,0.033]
[1741381286834,18.64964886,144.82,144.75,0.033]
[1741381287028,1.29541794,144.83,144.75,0.033]
[1741381287229,18.64964886,144.82,144.75,0.033]
[1741381287445,18.64964886,144.8,144.75,0.033]
[1741381287632,18.64964886,144.76,144.75,0.033]
[1741381287838,73.28852656,144.76,144.75,0.033]
[1741381288651,53.34302691,144.76,144.75,0.033]
[1741381288834,73.28828951,144.76,144.75,0.033]
[1741381289346,53.34302691,144.76,144.75,0.033]
[1741381289549,53.34302691,144.78,144.75,0.033]
[1741381289731,53.34302691,144.76,144.75,0.033]
[1741381289928,59.56012691,144.76,144.75,0.033]
[1741381290126,18.64964886,144.82,144.75,0.033]
[1741381290328,1.29536263,144.83,144.75,0.033]
[1741381290527,1.29492127,144.87,144.75,0.033]
[1741381290840,6.2103,144.92,144.75,0.033]
[1741381291026,1.29439309,144.91,144.75,0.033]
[1741381291426,48.17108129,144.88,144.81,48.17108129]
[1741381291623,48.17108129,144.85,144.78,48.17108129]
[1741381291827,48.17108129,144.85,144.75,0.033]
[1741381291828,48.17108129,144.81,144.75,0.033]
[1741381292130,18.64964886,144.85,144.75,0.033]
[1741381292336,1.29508239,144.84,144.75,0.033]
[1741381292535,1.29508239,144.84,144.75,48.20408129]
[1741381292732,1.29508239,144.84,144.75,0.033]
[1741381292971,48.17108129,144.81,144.75,0.033]
[1741381293152,48.17108129,144.76,144.75,0.033]
[1741381293452,48.17108129,144.76,144.72,0.033]
[1741381293453,18.64964886,144.75,144.72,0.033]
[1741381293658,18.64964886,144.73,144.72,0.033]
[1741381293845,73.03913015,144.73,144.72,0.033]
[1741381294048,48.17108129,144.73,144.72,0.033]
[1741381294760,66.82073015,144.73,144.72,0.033]
[1741381294934,18.64964886,144.73,144.72,0.033]
[1741381295257,48.17108129,144.73,144.72,0.033]
[1741381295444,18.64964886,144.72,144.61,1.8152318]
[1741381295653,48.17108129,144.62,144.61,1.8152318]
[1741381295841,54.39428129,144.62,144.61,1.8152318]
[1741381296156,73.04393015,144.62,144.61,3.18e-05]
[1741381296330,74.34120524,144.62,144.61,3.18e-05]
[1741381296534,18.64964886,144.61,144.43,6.9233]
[1741381296755,48.17108129,144.51,144.43,48.17108129]
[1741381297069,48.17108129,144.47,144.4,6.925]
[1741381297378,48.17108129,144.46,144.39,48.17108129]
[1741381297547,1.29797541,144.52,144.39,48.17108129]
[1741381297748,48.17108129,144.46,144.39,48.17108129]
[1741381297940,48.17108129,144.46,144.45,0.754293]
[1741381298337,1.29798291,144.5,144.45,0.754293]
[1741381298539,6.2266,144.54,144.45,0.754293]
[1741381298762,48.17108129,144.48,144.45,0.754293]
[1741381298936,1.29818851,144.47,144.45,0.754293]
[1741381299140,18.64964886,144.5,144.45,0.754293]
[1741381299335,18.64964886,144.48,144.45,0.754293]
[1741381299555,1.29839947,144.47,144.36,0.033]
[1741381299867,48.17108129,144.44,144.37,48.17108129]
[1741381300044,48.17108129,144.43,144.36,48.20408129]
[1741381300245,48.17108129,144.39,144.36,0.033]
[1741381300554,1.29882935,144.39,144.36,0.033]
[1741381301052,18.64964886,144.42,144.36,0.033]
[1741381301053,1.29912473,144.41,144.36,0.033]
[1741381301236,18.64964886,144.4,144.36,0.033]
[1741381301437,1.29908909,144.39,144.36,0.033]
[1741381301638,66.82073015,144.37,144.36,0.033]
[1741381301846,89.05377204,144.37,144.36,0.033]
[1741381302163,89.05377204,144.37,144.32,1.8576608]
[1741381302164,18.64964886,144.36,144.32,1.8576608]
[1741381302349,48.17108129,144.33,144.32,1.8576608]
[1741381302548,48.17108129,144.34,144.32,1.8576608]
[1741381302753,15.95926778,144.41,144.32,50.02874209]
[1741381302974,18.64964886,144.4,144.32,1.8576608]
[1741381303138,1.2988784,144.39,144.32,1.8576608]
[1741381303568,14.62,144.38,144.32,1.8576608]
[1741381303768,19.94879172,144.37,144.32,1.8576608]
[1741381303941,18.64964886,144.32,144.21,0.033]
[1741381304139,48.17108129,144.22,144.21,0.033]
[1741381304366,62.77108129,144.23,144.21,0.033]
[1741381304664,1.30020669,144.28,144.21,0.033]
[1741381305052,18.64964886,144.26,144.04,24.2987]
[1741381305370,18.64964886,144.24,144.04,24.2987]
[1741381305552,18.64964886,144.22,144.04,24.2987]
[1741381305753,1.30091214,144.21,144.04,24.2987]
[1741381306066,1.30091214,144.21,144.12,48.17108129]
[1741381306275,48.17108129,144.23,144.17,48.17108129]
[1741381306446,48.17108129,144.27,144.2,48.17108129]
[1741381306644,1.30034195,144.29,144.1,2.0]
[1741381306846,1.30034195,144.29,144.13,18.64964886]
[1741381307059,18.64964886,144.28,144.07,20.64964886]
[1741381307265,18.64964886,144.26,144.07,18.64964886]
[1741381307456,1.30052032,144.25,144.07,2.0]
[1741381307769,1.30030521,144.28,144.1,18.64964886]
[1741381307978,15.82003343,144.3,144.21,48.17108129]
[1741381308164,48.17108129,144.29,144.22,48.17108129]
[1741381308472,48.17108129,144.23,144.11,6.9391]
[1741381308669,19.95039458,144.22,144.07,6.941]
[1741381308970,14.4,144.21,144.07,6.941]
[1741381309173,19.9506871,144.2,144.06,0.033]
[1741381309685,1.30103824,144.2,144.06,6.9743]
[1741381309849,48.17108129,144.19,144.12,48.17108129]
[1741381310052,1.30103824,144.2,144.07,18.64964886]
[1741381310053,48.17108129,144.2,144.13,55.10918129]
[1741381310363,1.30066308,144.22,144.15,48.17108129]
[1741381310364,49.47174437,144.22,144.15,48.17108129]
[1741381310558,14.3,144.3,144.13,24.2835]
[1741381310766,1.2999966,144.29,144.14,18.64964886]
[1741381311073,1.29989776,144.32,144.14,344.90964886]
[1741381311374,15.5777,144.44,144.18,18.64964886]
[1741381311560,48.17108129,144.35,144.29,48.17108129]
[1741381311748,48.17108129,144.36,144.29,48.17108129]
[1741381312048,18.64964886,144.34,144.18,6.9357]
[1741381312248,48.17108129,144.27,144.2,48.17108129]
[1741381312445,1.29981006,144.33,144.18,58.9539]
[1741381312648,1.29971396,144.39,144.21,20.64964886]
[1741381312876,1.29971396,144.39,144.19,18.64964886]
[1741381312877,1.29912355,144.39,144.23,18.64964886]
[1741381313176,1.29912355,144.39,144.18,24.2751]
[1741381313477,18.64964886,144.37,144.16,8.4451]
[1741381313672,48.17108129,144.23,144.16,49.67988129]
[1741381313878,48.17108129,144.27,144.2,48.17108129]
[1741381314061,18.64964886,144.36,144.17,6.9362]
[1741381314262,1.29993237,144.35,144.18,18.64964886]
[1741381314477,14.08,144.36,144.18,18.64964886]
[1741381314679,1.29952547,144.35,144.18,330.64964886]
[1741381314977,18.64964886,144.34,144.18,18.64964886]
[1741381315150,1.29973598,144.33,144.18,18.64964886]
[1741381315350,48.17108129,144.27,144.2,48.17108129]
[1741381315550,48.17108129,144.26,144.19,48.17108129]
[1741381315864,18.64964886,144.3,144.16,1.5088]
[1741381315865,1.30004204,144.29,144.16,8.4454]
[1741381316070,1.30001688,144.35,144.17,18.64964886]
[1741381316481,1.30001688,144.35,144.18,2.0]
[1741381316854,1.29944633,144.37,144.17,18.64964886]
[1741381317053,18.64964886,144.36,144.18,2.0]
[1741381317384,48.17108129,144.28,144.21,48.17108129]
[1741381317884,1.29972433,144.33,144.21,48.17108129]
[1741381318053,48.17108129,144.3,144.22,6.9338]
[1741381318253,18.64964886,144.36,144.24,48.17108129]
[1741381318563,18.64964886,144.36,144.2,17.3364]
[1741381318564,48.17108129,144.29,144.2,6.9343]
[1741381318771,48.17108129,144.3,144.23,48.17108129]
[1741381318953,165.6223,144.4,144.2,24.2713]
[1741381318954,1.2997096,144.36,144.27,48.17108129]
[1741381319153,48.17108129,144.34,144.27,48.17108129]
[1741381319358,1.29930903,144.38,144.23,18.64964886]
[1741381319560,34.92735804,144.45,144.35,48.52351617]
[1741381319779,1.29858564,144.44,144.33,48.52351617]
[1741381319978,48.52351617,144.39,144.31,48.52351617]
[1741381320184,48.52351617,144.4,144.33,48.52351617]
[1741381320390,7.52958564,144.44,144.27,6.9314]
[1741381320391,1.29883608,144.39,144.27,6.9314]
[1741381320560,0.03,144.45,144.28,20.64964886]
[1741381320887,0.03,144.45,144.27,24.26]
[1741381321080,21.837,144.45,144.25,6.9324]
[1741381321297,48.52351617,144.3,144.25,6.9324]
[1741381321578,48.52351617,144.3,144.23,48.52351617]
[1741381321786,48.52351617,144.28,144.21,48.52351617]
[1741381321981,1.29972467,144.36,144.22,24.2684]
[1741381322158,163.8,144.39,144.23,20.64964886]
[1741381322358,6.2609,144.45,144.25,20.64964886]
[1741381322554,1.29884719,144.44,144.23,18.64964886]
[1741381322757,20.64964886,144.42,144.22,6.9338]
[1741381323004,48.52351617,144.34,144.26,48.52351617]
[1741381323161,1.29899554,144.44,144.33,48.52351617]
[1741381323361,1.29899554,144.44,144.23,18.64964886]
[1741381323582,1.29899554,144.44,144.26,18.64964886]
[1741381323785,1.29899554,144.44,144.26,20.64964886]
[1741381323967,0.03,144.45,144.31,42.90294886]
[1741381324159,0.03,144.45,144.37,2.0]
[1741381324357,0.03,144.45,144.35,18.64964886]
[1741381324685,0.03,144.45,144.37,18.64964886]
[1741381324879,0.03,144.45,144.36,18.64964886]
[1741381325080,0.03,144.45,144.44,48.52351617]
[1741381325255,0.03,144.45,144.32,248.56351617]
[1741381325453,0.03,144.45,144.33,7.7601]
[1741381325659,1.32835791,144.45,144.31,6.9295]
[1741381325875,1.32835791,144.45,144.29,6.9304]
[1741381326090,1.32835791,144.45,144.26,19.9928]
[1741381326091,18.64964886,144.44,144.27,6.9314]
[1741381326257,18.64964886,144.42,144.24,8.5561]
[1741381326590,1.29910226,144.41,144.22,24.268]
[1741381326796,48.52351617,144.33,144.26,48.52351617]
[1741381326985,48.52351617,144.3,144.23,48.52351617]
[1741381327161,48.52351617,144.3,144.22,6.9334]
[1741381327362,19.94908008,144.37,144.16,18.9101]
[1741381327363,18.64964886,144.36,144.16,18.9101]
[1741381327569,18.64964886,144.32,144.17,6.9362]
[1741381327869,1.29997373,144.31,144.16,8.5052]
[1741381328064,156.2548,144.36,144.19,18.64964886]
[1741381328276,19.8136,144.38,144.19,70.64964886]
[1741381328483,19.94880357,144.37,144.21,0.033]
[1741381328788,48.59007706,144.28,144.21,48.62307706]
[1741381328978,48.59007706,144.3,144.23,48.59007706]
[1741381329175,1.29963773,144.3,144.21,0.033]
[1741381329371,18.64964886,144.32,144.21,0.033]
[1741381329701,18.64964886,144.34,144.21,0.033]
[1741381329702,18.64964886,144.3,144.21,0.033]
[1741381329901,18.64964886,144.28,144.21,0.033]
[1741381330192,1.29994825,144.27,144.21,0.033]
[1741381330404,18.64964886,144.27,144.21,0.033]
[1741381330582,18.64964886,144.25,144.21,0.033]
[1741381330765,48.59007706,144.22,144.21,0.033]
[1741381331267,49.89070005,144.22,144.21,0.033]
[1741381331965,6.2378,144.28,144.21,0.033]
[1741381332288,18.64964886,144.26,144.21,0.033]
[1741381332586,1.30000124,144.27,144.21,0.033]
[1741381332587,1.30069739,144.25,144.21,0.033]
[1741381333294,48.59007706,144.25,144.21,0.033]
[1741381333492,54.82747706,144.29,144.21,48.62307706]
[1741381333797,13.32,144.36,144.25,48.59007706]
[1741381333979,1.29946861,144.39,144.21,52.033]
[1741381334168,23.11566861,144.39,144.22,6.9338]
[1741381334387,23.11566861,144.39,144.23,18.64964886]
[1741381334890,6.2335,144.39,144.23,18.64964886]
[1741381335091,1.29882704,144.38,144.23,18.64964886]
[1741381335294,48.59007706,144.38,144.31,48.59007706]
[1741381335500,150.1,144.41,144.33,48.59007706]
[1741381335501,156.3323,144.41,144.33,48.59007706]
[1741381335705,48.59007706,144.38,144.26,18.64964886]
[1741381335876,48.59007706,144.39,144.26,18.64964886]
[1741381336082,48.59007706,144.4,144.32,48.59007706]
[1741381336299,1.3289481,144.43,144.31,6.9292]
[1741381336300,23.13847788,144.43,144.31,6.9292]
[1741381336499,23.13847788,144.43,144.29,6.93]
[1741381336804,7.56031084,144.43,144.25,20.64964886]
[1741381337005,0.03,144.43,144.3,50.0]
[1741381337178,0.03,144.43,144.42,48.59007706]
[1741381337611,0.03,144.45,144.42,67.23972592]
[1741381337900,0.03,144.45,144.44,48.59007706]
[1741381338313,0.03,144.45,144.44,55.51327706]
[1741381338879,21.7917,144.55,144.44,48.59007706]
[1741381339079,48.59007706,144.49,144.38,6.9261]
[1741381339309,48.59007706,144.48,144.37,8.453]
[1741381339484,1.29756054,144.54,144.37,8.453]
[1741381339485,1.29756054,144.54,144.38,18.64964886]
[1741381339690,6.2262,144.55,144.47,48.59007706]
[1741381339993,0.03,144.58,144.45,18.64964886]
[1741381340200,0.03,144.58,144.57,48.59007706]
[1741381340542,0.03,144.58,144.51,18.64964886]
[1741381340880,0.03,144.58,144.46,87.3281]
[1741381340881,48.59007706,144.56,144.5,48.59007706]
[1741381341085,0.03,144.58,144.38,24.2415]
[1741381341086,0.03,144.45,144.38,24.2415]
[1741381341304,0.03,144.45,144.38,6.9261]
[1741381341581,0.03,144.45,144.38,18.64964886]
[1741381341793,0.03,144.45,144.37,1.5266]
[1741381342003,48.59007706,144.42,144.32,6.9287]
[1741381342198,54.82217706,144.42,144.35,48.59007706]
[1741381342415,48.59007706,144.4,144.33,48.59007706]
[1741381342820,48.59007706,144.38,144.31,48.59007706]
[1741381342995,48.59007706,144.37,144.3,48.59007706]
[1741381343396,23.11029233,144.42,144.3,48.59007706]
[1741381343627,48.59007706,144.35,144.28,48.59007706]
[1741381343804,48.59007706,144.34,144.27,48.59007706]
[1741381344121,1.29907203,144.39,144.28,48.59007706]
[1741381344430,6.2313,144.44,144.31,18.64964886]
[1741381344597,1.32886485,144.45,144.4,48.59007706]
[1741381344598,0.03,144.45,144.4,48.59007706]
[1741381344797,0.03,144.45,144.36,18.64964886]
[1741381345396,0.03,144.45,144.39,312.0]
[1741381345849,0.03,144.45,144.44,48.59007706]
[1741381346124,48.59007706,144.57,144.45,18.64964886]
[1741381346429,48.59007706,144.55,144.48,48.59007706]
[1741381346599,0.03,144.58,144.46,18.64964886]